Cogmind - Beta 15 @@@ ROGUE MODE // 2025.10.09 @ 15:47:15 Player: weedlord420 Result: Destroyed by D-53 Grenadier with Mini Grenade Launcher Performance ------------- Evolutions (1) 500 Regions Visited (4) 800 Robots Destroyed (67) 335 Value Destroyed (1554) 1554 Prototype IDs (2) 40 Alien Tech Used (0) 0 Bonus (14) 14 TOTAL SCORE: 3243 Bonus ------- Follower Combat Kills 14 Cogmind --------- Core Integrity 0/400 Matter 177/300 Energy 79/100 System Corruption 5% Temperature Cool (0) Movement Treading (160) Location -9/Mines Parts ------- > --- POWER (1) -------- (None) > --- PROPULSION (2) --- Improved Treads > --- UTILITY (4) ------ Large Storage Unit Structural Scanner > --- WEAPON (2) ------- Hammer > --- INVENTORY (15) --- Hacking Suite Hacking Suite Hacking Suite Salvaging Laser Improved Datajack Plasma Cutter Peak State ------------ > --- POWER ------------ Deuterium Engine > --- PROPULSION ------- Light Treads Improved Treads > --- UTILITY ---------- Large Storage Unit Salvage Targeting Computer Improved Targeting Computer Light Armor Plating > --- WEAPON ----------- Improved Assault Rifle Improved Assault Rifle > --- INVENTORY -------- Deuterium Engine Light Treads Wheel Structural Scanner Light Armor Plating Shield Generator Hacking Suite Hacking Suite Hacking Suite Salvaging Laser Improved Assault Rifle Rocket Launcher Improved Datajack Plasma Cutter Hammer [Rating: 21] Favorites ----------- Power Light Nuclear Core Engine Deuterium Engine Power Core Light Nuclear Core Propulsion Light Treads Treads Light Treads Wheel Wheel Utility Large Storage Unit Device Structural Scanner Storage Large Storage Unit Processor Salvage Targeting Computer Protection Light Armor Plating Weapon Improved Assault Rifle Energy Gun EM Pulse Gun Energy Cannon Beam Cannon Ballistic Gun Improved Assault Rifle Launcher Rocket Launcher Impact Weapon Hammer Build | -11 -10 -10 -9 -9 ------- Run | Yrd Mat Min Mat Min Slots Evolved 2 | . . . 2 . Power . | . . . . . Propulsion . | . . . . . Utility 2 | . . . 2 . Weapon . | . . . . . Parts Attached 50 | 8 10 3 24 5 Power 6 | 1 1 . 3 1 Engine 4 | 1 . . 2 1 Core 2 | . 1 . 1 . Reactor . | . . . . . Propulsion 13 | 4 1 . 7 1 Treads 9 | 2 . . 6 1 Leg . | . . . . . Wheel 4 | 2 1 . 1 . Hover . | . . . . . Flight . | . . . . . Utility 18 | 1 4 2 9 2 Device 3 | . 1 1 . 1 Storage 3 | 1 . 1 1 . Processor 4 | . . . 4 . Hackware . | . . . . . Protection 8 | . 3 . 4 1 Artifact . | . . . . . Weapon 13 | 2 4 1 5 1 Energy Gun 4 | 1 2 . 1 . Energy Cannon 1 | . 1 . . . Ballistic Gun 6 | 1 . 1 4 . Ballistic Cannon . | . . . . . Launcher 1 | . . . . 1 Special Weapon . | . . . . . Impact Weapon 1 | . 1 . . . Slashing Weapon . | . . . . . Piercing Weapon . | . . . . . Special Melee Weapon . | . . . . . Unidentified Prototypes . | . . . . . Parts Lost 14 | . . . 1 13 Power 2 | . . . . 2 Propulsion 4 | . . . 1 3 Utility 4 | . . . . 4 Weapon 4 | . . . . 4 Highest Loss Streak 10 | . . . 1 10 To Critical Strikes . | . . . . . Average Backups 10 | 2 7 8 14 10 Power . | . . . . . Propulsion 1 | 2 1 . 2 1 Utility 4 | . 3 4 5 4 Weapon 3 | . 2 3 4 2 Tool/Special . | . . . . . Unused Backups 13 | . 2 . 6 5 Power 1 | . . . 1 . Propulsion 1 | . . . 1 . Utility 6 | . 2 . 1 3 Weapon 3 | . . . 3 . Tool/Special 2 | . . . . 2 Average Slot Usage (%) 97 | . 96 100 98 75 Engine 5 | . 6 . 6 5 Core 6 | . 7 14 4 . Treads 17 | . 16 14 19 16 Wheel 6 | . 11 14 2 4 Device 1 | . . 7 1 3 Storage 12 | . 14 14 11 11 Processor 10 | . . . 20 10 Protection 9 | . 10 6 9 6 Energy Gun 5 | . 13 . 2 . Energy Cannon 3 | . 5 13 . . Ballistic Gun 13 | . 7 13 16 14 Impact Weapon 1 | . 2 . 1 . Peak Build Rating 21 | 6 10 10 21 21 Average Rating 13 | 3 8 10 18 13 On Entrance 9 | . 6 10 10 21 Naked Turns . | . . . . . Heaviest Build 39 | 12 16 20 38 39 Greatest Support 43 | 20 40 10 43 43 Greatest Overweight (x) 3 | 1 1 1 3 3 Average Overweight (x) . | . . 1 . 1 Largest Inventory Capacity 15 | 8 8 10 15 15 Average Capacity 11 | 6 8 9 14 15 Most Carried 15 | 5 8 10 15 15 Average Carried 10 | 2 7 8 14 10 Final Capacity 15 | 8 8 10 15 15 Final Carried 15 | 3 8 9 15 6 Class Distribution -------------------- 100% | Mutant Dominant Class ---------------- Mutant | -10/Materials Mutant | -10/Mines Mutant | -9/Materials Mutant | -9/Mines Resources | -11 -10 -10 -9 -9 ----------- Run | Yrd Mat Min Mat Min Matter Collected 1541 | 219 412 68 751 91 Remotely . | . . . . . Salvage Created 2645 | . 733 96 1647 169 Parts 145 | . 45 4 92 4 Haulers Intercepted 7 | . 1 . 6 . Recyclers Shooed 1 | . . . 1 . Parts Field Recycled . | . . . . . Retrieved Matter . | . . . . . Parts Self-Destructed . | . . . . . Prevented . | . . . . . Kills | -11 -10 -10 -9 -9 ------- Run | Yrd Mat Min Mat Min Combat Hostiles Destroyed 56 | . 14 3 25 14 Melee 6 | . 1 . 5 . Guns 41 | . 9 . 20 12 Cannons 3 | . . 3 . . AOE 5 | . 3 . . 2 Classes Destroyed 12 | . 7 . 4 1 Worker 1 | . . . 1 . Builder 2 | . 1 . 1 . Tunneler 1 | . . . 1 . Hauler 7 | . 1 . 6 . Recycler 2 | . 1 . 1 . Operator 4 | . 3 . 1 . Watcher 7 | . 3 . 4 . Swarmer 14 | . 6 1 6 1 Grunt 18 | . 8 2 8 . Brawler 1 | . . . 1 . Sentry 10 | . . . 10 . Assembled 13 | . . . . 13 Best Kill Streak 13 | . 5 2 6 13 Combat Bots Only 13 | . 3 2 4 13 Max Kills in Single Turn 2 | . 2 1 1 2 Gunslinging . | . . . . . Exploded 2 | . 2 . . 2 Melee 1 | . 1 . 1 . Uniques/NPCs Destroyed . | . . . . . Combat | -11 -10 -10 -9 -9 -------- Run | Yrd Mat Min Mat Min Hostile Shots Fired 295 | . 67 8 120 100 Missed 65 | . 15 1 24 25 Hits 230 | . 52 7 96 75 Melee 10 | . . . . 10 Projectile 220 | . 52 7 96 65 AOE 8 | . . . . 8 Critical Strikes 9 | . 1 . 6 2 Part Disruptions 3 | . 3 . . . Damage Taken 3343 | . 632 72 1292 1347 Core 541 | . 139 . 167 235 Absorbed by Shields 35 | . . . . 35 Core Remaining (%) 72 | 100 . 44 . . Volleys Fired 176 | . 59 8 83 26 Largest 2 | . 2 2 2 2 Hottest 90 | . 90 80 86 46 Shots Fired 325 | . 110 16 160 39 Gun 311 | . 108 8 160 35 Cannon 10 | . 2 8 . . Launcher 4 | . . . . 4 Special . | . . . . . Kinetic 212 | . 37 8 132 35 Thermal 60 | . 24 8 28 . Explosive 4 | . . . . 4 Electromagnetic 49 | . 49 . . . Robot Hit Streak 42 | . 9 5 42 12 Robot Miss Streak 3 | . 3 3 3 2 Penetration Max . | . . . . . Secondary Targets 6 | . . . 4 2 Max Gunslinging Chain 1 | . . . 1 1 Shots Hit Robots 255 | . 73 8 141 33 Core Hits 120 | . 36 4 56 24 Critical Kills 2 | . . . 1 1 Critical Parts Destroyed 3 | . 2 . 1 . Critical Strikes 10 | . 5 . 4 1 Burn 4 | . 2 . 2 . Destroy 2 | . . . 1 1 Corrupt 1 | . 1 . . . Smash 3 | . 2 . 1 . Melee Attacks 42 | . 13 . 26 3 Impact 42 | . 13 . 26 3 Slashing . | . . . . . Piercing . | . . . . . Sneak Attacks 3 | . . . 3 . Combat Hostiles . | . . . . . Follow-up Attacks . | . . . . . Damage Inflicted 4340 | . 1254 110 2276 700 Guns 3114 | . 858 23 1768 465 Cannons 105 | . 18 87 . . Explosions 378 | . 201 . . 177 Melee 743 | . 177 . 508 58 Ramming . | . . . . . Kinetic 2268 | . 313 23 1467 465 Thermal 662 | . 274 87 301 . Explosive 177 | . . . . 177 Electromagnetic 490 | . 490 . . . Impact 743 | . 177 . 508 58 Slashing . | . . . . . Piercing . | . . . . . Highest Corruption 5 | . . . 1 5 Average Corruption 1 | . . . 1 2 Corruption Purged . | . . . . . Corruption Blocked . | . . . . . Effects 15 | . . . 13 2 Message Errors 2 | . . . 1 1 Matter Fused 4 | . . . 4 . Heat Flow Errors 3 | . . . 3 . Energy Discharges 1 | . . . . 1 Parts Rejected 1 | . . . 1 . Data Loss (minor) 1 | . . . 1 . Data Loss (major) 1 | . . . 1 . Misfires 2 | . . . 2 . Overload Shots . | . . . . . Overflow Damage 108 | . 49 . 51 8 Projectiles . | . . . . . Explosions 11 | . 3 . . 8 Melee 97 | . 46 . 51 . Knockbacks 1 | . . . 1 . Impact 1 | . . . 1 . Kinetic . | . . . . . Secondary . | . . . . . Self-Inflicted Damage 54 | . 54 . . . Shots 2 | . 2 . . . Rammed . | . . . . . Targets Rammed . | . . . . . Kicked . | . . . . . Crushed . | . . . . . Highest Temperature 265 | . 70 177 265 57 Average Temperature 43 | . 21 65 63 18 Received Heat Transfer 1032 | . 225 33 546 228 Siege Activations . | . . . . . Martial Activations . | . . . . . Shielding Activations . | . . . . . Robots Disrupted . | . . . . . Combat Hostiles . | . . . . . Robots Corrupted 3 | . 1 . 2 . Combat Hostiles 1 | . 1 . . . Parts Fried 8 | . 6 . 2 . Impact Corruptions 7 | . 2 . 4 1 Robots Melted . | . . . . . Combat Hostiles . | . . . . . Parts Melted . | . . . . . Heat Transferred 1881 | . 744 185 952 . Parts Sabotaged . | . . . . . Parts Stolen . | . . . . . Parts Stripped . | . . . . . Power Chain Reactions 1 | . 1 . . . Alert | -11 -10 -10 -9 -9 ------- Run | Yrd Mat Min Mat Min Maximum Alert Level 1 | . 1 . 1 . Low Security (%) 83 | 100 86 100 76 100 Level 1 16 | . 13 . 23 . Level 2 . | . . . . . Level 3 . | . . . . . Level 4 . | . . . . . Level 5 . | . . . . . High Security . | . . . . . Max Security . | . . . . . Peak Influence 264 | . 258 84 264 113 Initial 91 | . . 60 . 91 Average 100 | . 115 25 115 44 Influence Increases 1547 | . 541 124 840 42 Destroy 0b10 Robot/C 900 | . 280 100 500 20 Destroy 0b10 Robot/NC 115 | . 45 . 70 . Destroy Leader 238 | . 58 20 160 . Allied During Kill 4 | . . 4 . . Successful Hack 57 | . 12 . 45 . Disable Machine 90 | . 60 . 30 . Destroy Structure 38 | . 11 . 5 22 Lose Combat Pursuer 105 | . 75 . 30 . Influence Decreases 1547 | . 386 279 604 278 Entered New Map 240 | . . 95 . 145 Time Decay 1061 | . 376 164 481 40 Lost Part 93 | . . . 10 83 Lost Ally 40 | . 10 20 . 10 Purge Threat 113 | . . . 113 . Squads Dispatched 3 | . 3 . . . Investigation . | . . . . . Extermination . | . . . . . Reinforcement 3 | . 3 . . . Assault . | . . . . . Garrison . | . . . . . Intercept . | . . . . . Searches Triggered . | . . . . . Construction Impeded . | . . . . . Haulers Reinforced . | . . . . . Active Scanning Responses . | . . . . . Cargo Convoy Interrupts . | . . . . . Stealth | -11 -10 -10 -9 -9 --------- Run | Yrd Mat Min Mat Min Distress Signals 3 | . 2 . 1 . Communications Jammed . | . . . . . Distress Signals . | . . . . . Times Spotted 99 | . 30 5 37 27 Peak Tracking Total 22 | . 3 3 6 22 Tactical Retreats 7 | . 3 . 2 2 Traps | -11 -10 -10 -9 -9 ------- Run | Yrd Mat Min Mat Min Traps Triggered 2 | . 1 . 1 . Indirectly . | . . . . . Trap Hack Attempts . | . . . . . Triggered . | . . . . . Disarmed . | . . . . . Reprogrammed . | . . . . . Reused . | . . . . . Traps Extracted . | . . . . . Installed . | . . . . . Triggered . | . . . . . Machines | -11 -10 -10 -9 -9 ---------- Run | Yrd Mat Min Mat Min Machines Disabled 6 | . 4 . 2 . Max in Single Turn 2 | . 2 . 1 . Machines Repaired . | . . . . . Machines Dismantled . | . . . . . Machines Sabotaged . | . . . . . Overloaded Fab Kills . | . . . . . Hacking | -11 -10 -10 -9 -9 --------- Run | Yrd Mat Min Mat Min Machines Accessed 21 | . 8 . 13 . Terminals 17 | . 5 . 12 . Fabricators . | . . . . . Repair Stations 1 | . 1 . . . Recycling Units 2 | . 2 . . . Scanalyzers 1 | . . . 1 . Garrison Access . | . . . . . Total Hacks 54 | . 20 . 34 . Successful 23 | . 7 . 16 . Failed 31 | . 13 . 18 . Catastrophic 4 | . 1 . 3 . Database Lockouts . | . . . . . Manual 43 | . 14 . 29 . Terminals 46 | . 14 . 32 . Fabricators . | . . . . . Repair Stations 2 | . 2 . . . Recycling Units 4 | . 4 . . . Scanalyzers 2 | . . . 2 . Garrison Access . | . . . . . Terminal Hacks 3 | . 1 . 2 . Terminal Index 2 | . 1 . 1 . Unreport Threat 1 | . . . 1 . Fabricator Hacks . | . . . . . Repair Station Hacks . | . . . . . Recycling Unit Hacks 1 | . 1 . . . Retrieve Components 1 | . 1 . . . Scanalyzer 2 | . . . 2 . Insert Component 2 | . . . 2 . Garrison Access Hacks . | . . . . . Unauthorized Hacks 17 | . 5 . 12 . Terminals 17 | . 5 . 12 . Track 2 | . . . 2 . Assimilate 5 | . 2 . 3 . Botnet 8 | . 2 . 6 . Operators 2 | . 1 . 1 . Fabricators . | . . . . . Repair Stations . | . . . . . Recycling Units . | . . . . . Scanalyzers . | . . . . . Garrison Access . | . . . . . Data Cores Recovered . | . . . . . Used . | . . . . . Hacking Detections 20 | . 8 . 12 . Full Trace Events . | . . . . . Feedback Events . | . . . . . Feedback Blocked . | . . . . . Robot Schematics Acquired . | . . . . . Robots Built . | . . . . . Authchips . | . . . . . Time . | . . . . . Total Robot Build Rating . | . . . . . Part Schematics Acquired . | . . . . . Parts Built . | . . . . . Authchips . | . . . . . Time . | . . . . . Total Part Build Rating . | . . . . . Parts Repaired . | . . . . . Time . | . . . . . Parts Recycled . | . . . . . Recycled Matter . | . . . . . Retrieved Matter . | . . . . . Retrieved Components 1 | . 1 . . . Parts Scanalyzed . | . . . . . Part Schematics Acquired . | . . . . . Parts Damaged . | . . . . . Bothacking | -11 -10 -10 -9 -9 ------------ Run | Yrd Mat Min Mat Min Used RIF Installer . | . . . . . Robots Hacked . | . . . . . Non-combat . | . . . . . Combat . | . . . . . Robot Hacks Applied . | . . . . . Relay Couplers Released . | . . . . . Fabnet Peak Effective % . | . . . . . Robots Rewired . | . . . . . Allies Hacked . | . . . . . Hacks Repelled . | . . . . . Allies | -11 -10 -10 -9 -9 -------- Run | Yrd Mat Min Mat Min Total Allies 4 | . 1 1 2 . Largest Group 2 | . 1 1 2 1 Highest-Rated Group 31 | . 10 31 20 10 Highest-Rated Ally 31 | . 10 31 10 10 Total Orders 1 | . . . 1 . STAY 1 | . . . 1 . Ally Attacks 9 | . . 9 . . Total Damage 125 | . . 125 . . Kills 2 | . . 2 . . Allies Corrupted . | . . . . . Allies Melted 1 | . . . . 1 Intel | -11 -10 -10 -9 -9 ------- Run | Yrd Mat Min Mat Min Active Infowar (turns) 566 | . . 292 247 27 Structural 566 | . . 292 247 27 Robot Analysis Total . | . . . . . Derelict Logs Recovered 1 | . . 1 . . Drone Launches . | . . . . . Drone Recoveries . | . . . . . Exploration | -11 -10 -10 -9 -9 ------------- Run | Yrd Mat Min Mat Min Turns Passed 4513 | 53 1484 572 2262 142 Spaces Moved 2633 | 43 909 530 1115 36 Core 26 | 26 . . . . Treads 1119 | . 275 . 830 14 Legs . | . . . . . Wheels 1488 | 17 634 530 285 22 Hover . | . . . . . Flight . | . . . . . Fastest Speed 50 | 50 80 95 95 110 Average Speed 122 | 63 108 95 148 135 Slowest Speed 160 | 100 160 95 160 160 Overloaded Moves . | . . . . . Propulsion Burnouts . | . . . . . Robots Hopped . | . . . . . Potential Cave-ins . | . . . . . Cave-ins Triggered . | . . . . . Exploration Rate (%) 56 | 3 91 97 81 11 Regions Visited 4 Branch Regions 2 Pre-discovered Areas . | . . . . . Known Exits Taken 1 | . . . 1 . Unknown Exits Taken 3 | 1 1 1 . . Scrap Searched 2 | . . 2 . . Spaces Dug 2 | . 1 . 1 . Terrain Destroyed 46 | . 6 . 1 39 Melee 2 | . 1 . 1 . Projectile . | . . . . . AOE 44 | . 5 . . 39 Terrain Rammed . | . . . . . Walls Destroyed . | . . . . . Machines Disabled . | . . . . . Actions | -11 -10 -10 -9 -9 --------- Run | Yrd Mat Min Mat Min Total 3527 | 66 1270 583 1524 84 Wait 505 | 10 241 35 213 6 Move 2629 | 42 908 529 1114 36 Hop . | . . . . . Pick Up 51 | 6 13 3 28 1 Fast Attach 4 | 3 . . 1 . Attach 17 | 3 1 . 4 9 Detach . | . . . . . Swap 66 | 2 24 5 32 3 Drop 36 | . 10 3 23 . Fire 176 | . 59 8 83 26 Melee 42 | . 13 . 26 3 Ram . | . . . . . Kick . | . . . . . Crush . | . . . . . Escape Stasis . | . . . . . Rewire 1 | . 1 . . . Trap . | . . . . . Miscellaneous . | . . . . . Route ------- -11/Scrapyard -10/Materials (discovered 5 exits: *Mat x2 / [*Min x2] / [*Sub]) -10/Mines (discovered 3 exits: *Mat x2 / [Sub]) -9/Materials -9/Mines History --------- Turn | Location | Event 4 | -11/Scrapyard | Discovered new exit (range 15) 54 | -11/Scrapyard | Entered Materials 55 | -10/Materials | Met a group of wandering Federalists 276 | -10/Materials | Discovered new exit (range 5) 318 | -10/Materials | Build established: Mutant 505 | -10/Materials | Discovered new exit (range 12) 583 | -10/Materials | Discovered new exit (range 12) 1231 | -10/Materials | Discovered new exit (range 8) 1312 | -10/Materials | Core integrity fell below 50% 1425 | -10/Materials | Discovered new exit (range 16) 1538 | -10/Materials | Entered Mines 1543 | -10/Mines | Received a Mining Laser from a helpful Derelict 1723 | -10/Mines | Discovered new exit (range 5) 1814 | -10/Mines | Discovered new exit (range 9) 1852 | -10/Mines | Learned location of 1 exit from Materials 1902 | -10/Mines | Received a Rocket Launcher from a helpful Derelict 1993 | -10/Mines | Discovered new exit (range 8) 2110 | -10/Mines | Entered Materials 2110 | -9/Materials | Evolved 2 slots: Utility x2 2111 | -9/Materials | Identified exit to Mines 4372 | -9/Materials | Entered Mines 4372 | -9/Mines | Accompanied by 1 ally 4373 | -9/Mines | Assembled infested the area 4378 | -9/Mines | Assisted by a Guerilla fighting off Assembled 4412 | -9/Mines | Core integrity fell below 50% 4462 | -9/Mines | Core integrity fell below 20% 4490 | -9/Mines | Lost 10 parts (2p2n3u3w) 4496 | -9/Mines | Destroyed 13 combat bots 4514 | -9/Mines | Destroyed by D-53 Grenadier with Mini Grenade Launcher Last Messages --------------- 04455_ as-30627 destroyed. 04456_ Deuterium Engine destroyed. 04458_ as-12399 suffers critical hit (Destroy). 04458_ as-12399 destroyed. 04459_ Imp. Assault Rifle destroyed. 04463_ as-77862 destroyed. 04475_ as-42542 destroyed. 04477_ Acquired 26 matter. 04478_ Acquired 49 matter. 04480_ Acquired 4 matter. 04485_ Acquired Lgt. Armor Plating. 04491_ System corrupted: Energy discharge (-27). 04491_ Acquired 12 matter. 04509_ Destroyed Launcher Guidance Computer. 04509_ D-53 Grenadier system corrupted by crushing effect. 04510_ Imp. Assault Rifle destroyed. 04510_ Lgt. Armor Plating destroyed. 04511_ The unstable cave ceiling collapses. 04513_ Lgt. Treads destroyed. Map ----- +----------------------------------------------------+ | ??????????????????????????????????? | | ??????????????????????????????????? | | ??????????????????????????????????? | | ??????????????????????????????????? | | ??????????????????????????????????? | | ??????????????????????????????????? | | ??????????????????????????????????? | | ??????????????????????????????????? | | ??????????????????????????????????? | | ??????????????????????????????????? | | ??????????????????????????????????? | | ??????????????????????????????????? | | ??????????????#####???????????????? | | ?????####???###### ???????????????? | | ????#####???### ???????????????? | | ????### ???# ?????????????????? | | ????## ????? ?????????????????? | | ????## ??? ??????????????????? | | ????## ??? ???????????????????? | | ?????? ???????????????????? | | ?????## ### ##??????????????????? | | ????#### # ####????? ?????????? | | ????### ####??? ##?????????? | | ????## ## ###?????????? | | ????## ####??????????? | | ????## @ ###????????????? | | ????## d ## ###?????????????? | | ????## #####??????????????? | | ????### ###?????????????????? | | ????#### d ####?????????????????? | | ?????#### ####??????????????????? | | ??????### ###???????????????????? | | ???????# ###????????????????????? | | ???????# ####????????????????????? | | ???????# %###?????????????????????? | | ??????## ##?????????????????????? | | ?????## #?????????????????????? | | ????## #?????????????????????? | | ????# ##?????????????????????? | | ????# #??????????????????????? | | ????# ##??????????????????????? | | ????## ##??????????????????????? | | ?????# % ???????????????????????? | | ?????# ???????????????????????? | | ????? # ???????????????????????? | | ?????# #??????????????????????? | | ????? # #??????????????????????? | | ????? * #??????????????????????? | | ????? #??????????????????????? | | ????? [% #??????????????????????? | +----------------------------------------------------+ Best States ------------- Heat Dissipation 35 Energy Generation 14 Energy Capacity 275 Matter Stores 300 Matter Capacity 300 Sight Range 16 Terrain Scan Density 10 Armor Coverage 225 Evasion (%) 50 Targeting Accuracy 6 Recoil Reduction 2 Salvage Targeting 1 Item Schematics ----------------- None Robot Schematics ------------------ None Fabricated ------------ Nothing Repaired ---------- Nothing Alien Tech Used ----------------- None Achievements -------------- None Challenges ------------ None Game ------ Seed CooledRecoilBoomstick Manual? 0 Play Time 00:53:49 Cumulative 104.5 hours Start 2025.10.09 @ 09:06:16 End 2025.10.09 @ 15:47:15 Sessions 1 Manual Loads 0 Difficulty Rogue Special Mode None Game No. 167 Rogue 166 Adventurer 1 Explorer 0 Win Type - Total 1 Types 0/0/0/1/0/0/0/0/0/0 Lore% 58 Gallery% 53 Achievement% 49 Wizard Run 0 Options --------- Layout 1 ASCII 0 Keyboard 0 Movement Mouse Keybinds 0 Fullscreen 1 Font 24/Smallcaps Map View 50x35 Zoom Use 0% Tactical HUD 1 Map Filters NONE Filters NONE Steam 1 RUN: 34cca67c-ef96-45ae-89b9-9cdf5b2ecb66